Cogmind - Beta 14 @@@ ROGUE MODE // 2024.09.23 @ 03:43:40 Player: daxter767676 Result: Destroyed by G-34 Mercenary with Small Laser Performance ------------- Evolutions (0) 0 Regions Visited (2) 400 Robots Destroyed (17) 85 Value Destroyed (357) 357 Prototype IDs (11) 220 Alien Tech Used (0) 0 Bonus (0) 0 TOTAL SCORE: 1062 Bonus ------- None Cogmind --------- Core Integrity 0/250 Matter 288/450 Energy 152/200 System Corruption 0% Temperature Cool (6) Movement Rolling (140) Ox4 Location -10/Subcaves Parts ------- > --- POWER (1) -------- Subdweller Power Source > --- PROPULSION (2) --- Wheel Wheel > --- UTILITY (2) ------ Huge Storage Unit Large Matter Pod > --- WEAPON (2) ------- Light Cannon Enhanced Flamer > --- INVENTORY (25) --- Ion Engine Light Ion Engine Light Treads Subdweller Monowheel Light Armor Plating Light Armor Plating Light Armor Plating Light Armor Plating Rainbow Chip Battle Cannon Battle Cannon Grenade Launcher Subdweller Shrapnel Launcher Mining Laser Peak State ------------ > --- POWER ------------ Subdweller Power Source > --- PROPULSION ------- Wheel Wheel > --- UTILITY ---------- Huge Storage Unit Large Matter Pod > --- WEAPON ----------- Mining Laser Enhanced Flamer > --- INVENTORY -------- Ion Engine Light Ion Engine Light Treads Subdweller Monowheel Light Armor Plating Light Armor Plating Light Armor Plating Light Armor Plating Rainbow Chip Light Cannon Battle Cannon Battle Cannon Grenade Launcher Subdweller Shrapnel Launcher [Rating: 13] Favorites ----------- Power Subdweller Power Source Engine Subdweller Power Source Propulsion Wheel Leg Aluminum Leg Wheel Wheel Utility Large Storage Unit Storage Large Storage Unit Protection Scrap Shield Weapon Light Cannon Energy Gun EM Pulse Gun Ballistic Gun Light Assault Rifle Ballistic Cannon Light Cannon Special Weapon Enhanced Flamer Build | -11 -10 -10 ------- Run | Yrd Mat Sub Slots Evolved . | . . . Power . | . . . Propulsion . | . . . Utility . | . . . Weapon . | . . . Parts Attached 27 | . 13 14 Power 1 | . . 1 Engine 1 | . . 1 Core . | . . . Reactor . | . . . Propulsion 6 | . 4 2 Treads . | . . . Leg 3 | . 3 . Wheel 3 | . 1 2 Hover . | . . . Flight . | . . . Utility 5 | . 2 3 Device . | . . . Storage 3 | . 1 2 Processor . | . . . Hackware . | . . . Protection 2 | . 1 1 Artifact . | . . . Weapon 15 | . 7 8 Energy Gun 2 | . 1 1 Energy Cannon . | . . . Ballistic Gun 4 | . 4 . Ballistic Cannon 3 | . . 3 Launcher . | . . . Special Weapon 6 | . 2 4 Impact Weapon . | . . . Slashing Weapon . | . . . Piercing Weapon . | . . . Special Melee Weapon . | . . . Unidentified Prototypes . | . . . Parts Lost 6 | . 2 4 Power . | . . . Propulsion 3 | . 1 2 Utility 1 | . . 1 Weapon 2 | . 1 1 Highest Loss Streak 3 | . 1 3 To Critical Strikes . | . . . Average Slot Usage (%) 89 | . 93 86 Engine 14 | . 14 14 Leg 11 | . 26 . Wheel 15 | . . 26 Storage 11 | . 14 9 Protection 8 | . 9 7 Energy Gun 8 | . 13 4 Ballistic Gun 5 | . 11 . Ballistic Cannon 6 | . . 10 Special Weapon 7 | . 1 12 Peak Build Rating 13 | 6 8 13 Average Rating 8 | 6 7 10 On Entrance 6 | 6 6 7 Naked Turns . | . . . Heaviest Build 91 | 13 31 91 Greatest Support 20 | 20 20 20 Greatest Overweight (x) 8 | . 8 4 Average Overweight (x) 1 | . 1 1 Largest Inventory Capacity 25 | 8 15 25 Average Capacity 11 | 8 14 9 Most Carried 15 | 6 15 14 Average Carried 9 | 6 13 6 Final Capacity 25 | 8 15 25 Final Carried 14 | 6 14 14 Class Distribution -------------------- 100% | Mutant Dominant Class ---------------- Mutant | -10/Materials Mutant | -10/Subcaves Resources | -11 -10 -10 ----------- Run | Yrd Mat Sub Matter Collected 592 | 200 110 282 Remotely . | . . . Salvage Created 340 | . 187 153 Parts 28 | . 20 8 Haulers Intercepted . | . . . Recyclers Shooed . | . . . Parts Field Recycled . | . . . Retrieved Matter . | . . . Parts Self-Destructed . | . . . Prevented . | . . . Kills | -11 -10 -10 ------- Run | Yrd Mat Sub Combat Hostiles Destroyed 15 | . 9 6 Guns 9 | . 8 1 Cannons 3 | . . 3 AOE 1 | . 1 . Classes Destroyed 4 | . 3 1 Worker 1 | . 1 . Operator 1 | . 1 . Swarmer 9 | . 9 . Subdweller 6 | . . 6 Best Kill Streak 3 | . 3 2 Combat Bots Only 3 | . 3 2 Max Kills in Single Turn 1 | . 1 1 Gunslinging . | . . . Exploded 1 | . 1 . Melee . | . . . Uniques/NPCs Destroyed . | . . . Combat | -11 -10 -10 -------- Run | Yrd Mat Sub Hostile Shots Fired 108 | . 63 45 Missed 32 | . 20 12 Damage Taken 1069 | . 395 674 Core 250 | . 83 167 Absorbed by Shields . | . . . Core Remaining (%) 100 | 100 . . Volleys Fired 77 | . 39 38 Largest 2 | . 2 2 Hottest 120 | . 120 115 Shots Fired 133 | . 71 62 Gun 80 | . 67 13 Cannon 31 | . . 31 Launcher . | . . . Special 22 | . 4 18 Kinetic 71 | . 36 35 Thermal 31 | . 4 27 Explosive . | . . . Electromagnetic 31 | . 31 . Robot Hit Streak 13 | . 3 13 Robot Miss Streak 6 | . 6 2 Penetration Max . | . . . Secondary Targets 2 | . 2 . Max Gunslinging Chain 1 | . 1 . Shots Hit Robots 78 | . 31 47 Core Hits 28 | . 16 12 Critical Kills . | . . . Critical Parts Destroyed . | . . . Critical Strikes 5 | . . 5 Burn 3 | . . 3 Blast 2 | . . 2 Melee Attacks . | . . . Impact . | . . . Slashing . | . . . Piercing . | . . . Sneak Attacks . | . . . Combat Hostiles . | . . . Follow-up Attacks . | . . . Damage Inflicted 984 | . 318 666 Guns 384 | . 295 89 Cannons 467 | . . 467 Explosions 23 | . 23 . Melee . | . . . Ramming . | . . . Kinetic 607 | . 118 489 Thermal 200 | . 23 177 Explosive . | . . . Electromagnetic 177 | . 177 . Impact . | . . . Slashing . | . . . Piercing . | . . . Highest Corruption . | . . . Average Corruption . | . . . Corruption Purged . | . . . Corruption Blocked . | . . . Overload Shots . | . . . Overflow Damage 8 | . 8 . Projectiles . | . . . Explosions 8 | . 8 . Melee . | . . . Knockbacks 11 | . . 11 Impact . | . . . Kinetic 11 | . . 11 Secondary . | . . . Self-Inflicted Damage 35 | . 35 . Shots 1 | . 1 . Rammed . | . . . Targets Rammed . | . . . Kicked . | . . . Crushed . | . . . Highest Temperature 141 | . 141 9 Average Temperature 38 | . 40 3 Received Heat Transfer 186 | . . 186 Siege Activations . | . . . Robots Corrupted . | . . . Combat Hostiles . | . . . Parts Fried . | . . . Impact Corruptions . | . . . Robots Melted 2 | . . 2 Combat Hostiles 2 | . . 2 Parts Melted . | . . . Heat Transferred 1480 | . 50 1430 Parts Sabotaged . | . . . Parts Stolen . | . . . Parts Stripped . | . . . Power Chain Reactions 1 | . 1 . Alert | -11 -10 -10 ------- Run | Yrd Mat Sub Peak Influence 169 | . 169 . Initial . | . . . Average 56 | . 56 . Maximum Alert Level . | . . . Low Security (%) 100 | 100 100 . Level 1 . | . . . Level 2 . | . . . Level 3 . | . . . Level 4 . | . . . Level 5 . | . . . High Security . | . . . Max Security . | . . . Squads Dispatched . | . . . Investigation . | . . . Extermination . | . . . Reinforcement . | . . . Assault . | . . . Garrison . | . . . Intercept . | . . . Searches Triggered . | . . . Construction Impeded . | . . . Haulers Reinforced . | . . . Active Scanning Responses . | . . . Cargo Convoy Interrupts . | . . . Stealth | -11 -10 -10 --------- Run | Yrd Mat Sub Distress Signals 1 | . 1 . Communications Jammed . | . . . Distress Signals . | . . . Times Spotted 27 | . 19 8 Peak Tracking Total 4 | . 4 2 Tactical Retreats 3 | . 3 . Traps | -11 -10 -10 ------- Run | Yrd Mat Sub Traps Triggered 3 | . 3 . Indirectly . | . . . Trap Hack Attempts . | . . . Triggered . | . . . Disarmed . | . . . Reprogrammed . | . . . Reused 1 | . . 1 Traps Extracted . | . . . Installed 1 | . . 1 Triggered . | . . . Machines | -11 -10 -10 ---------- Run | Yrd Mat Sub Machines Disabled 2 | . 1 1 Max in Single Turn 1 | . 1 1 Machines Repaired . | . . . Machines Dismantled . | . . . Machines Sabotaged . | . . . Overloaded Fab Kills . | . . . Hacking | -11 -10 -10 --------- Run | Yrd Mat Sub Machines Accessed 7 | . 6 1 Terminals 6 | . 6 . Fabricators . | . . . Repair Stations . | . . . Recycling Units . | . . . Scanalyzers . | . . . Garrison Access . | . . . Total Hacks 18 | . 17 1 Successful 8 | . 7 1 Failed 10 | . 10 . Catastrophic 2 | . 2 . Database Lockouts . | . . . Manual 15 | . 15 . Terminals 17 | . 17 . Fabricators . | . . . Repair Stations . | . . . Recycling Units . | . . . Scanalyzers . | . . . Garrison Access . | . . . Terminal Hacks 3 | . 2 1 Robot Analysis 1 | . 1 . Terminal Index 1 | . 1 . Derelict Proto ID Bank 1 | . . 1 Fabricator Hacks . | . . . Repair Station Hacks . | . . . Recycling Unit Hacks . | . . . Scanalyzer . | . . . Garrison Access Hacks . | . . . Unauthorized Hacks 5 | . 5 . Terminals 5 | . 5 . Skim 5 | . 5 . Fabricators . | . . . Repair Stations . | . . . Recycling Units . | . . . Scanalyzers . | . . . Garrison Access . | . . . Data Cores Recovered 1 | . 1 . Used 1 | . 1 . Hacking Detections 6 | . 6 . Full Trace Events . | . . . Feedback Events . | . . . Feedback Blocked . | . . . Robot Schematics Acquired . | . . . Robots Built . | . . . Authchips . | . . . Time . | . . . Total Robot Build Rating . | . . . Part Schematics Acquired . | . . . Parts Built . | . . . Authchips . | . . . Time . | . . . Total Part Build Rating . | . . . Parts Repaired . | . . . Time . | . . . Parts Recycled . | . . . Recycled Matter . | . . . Retrieved Matter . | . . . Retrieved Components . | . . . Parts Scanalyzed . | . . . Part Schematics Acquired . | . . . Parts Damaged . | . . . Bothacking | -11 -10 -10 ------------ Run | Yrd Mat Sub Used RIF Installer . | . . . Robots Hacked . | . . . Non-combat . | . . . Combat . | . . . Robot Hacks Applied . | . . . Relay Couplers Released . | . . . Fabnet Peak Effective % . | . . . Robots Rewired . | . . . Allies Hacked . | . . . Hacks Repelled . | . . . Allies | -11 -10 -10 -------- Run | Yrd Mat Sub Total Allies . | . . . Largest Group . | . . . Highest-Rated Group . | . . . Highest-Rated Ally . | . . . Total Orders . | . . . Ally Attacks . | . . . Total Damage . | . . . Kills . | . . . Allies Corrupted . | . . . Allies Melted . | . . . Intel | -11 -10 -10 ------- Run | Yrd Mat Sub Robot Analysis Total 1 | . 1 . Derelict Logs Recovered 1 | . . 1 Drone Launches . | . . . Drone Recoveries . | . . . Exploration | -11 -10 -10 ------------- Run | Yrd Mat Sub Turns Passed 1895 | 2 813 1080 Spaces Moved 1219 | 2 368 849 Core 1 | . 1 . Treads . | . . . Legs 344 | 2 342 . Wheels 874 | . 25 849 Hover . | . . . Flight . | . . . Fastest Speed 80 | 120 110 80 Average Speed 122 | 120 179 97 Slowest Speed 450 | 120 450 140 Overloaded Moves . | . . . Propulsion Burnouts . | . . . Robots Hopped . | . . . Cave-ins Triggered . | . . . Exploration Rate (%) 30 | 2 56 34 Regions Visited 2 Branch Regions 1 Pre-discovered Areas . | . . . Known Exits Taken 1 | . 1 . Unknown Exits Taken 1 | 1 . . Scrap Searched 3 | . . 3 Spaces Dug 3 | . 3 . Terrain Destroyed 5 | . 5 . Melee . | . . . Projectile 3 | . 3 . AOE 2 | . 2 . Terrain Rammed . | . . . Walls Destroyed . | . . . Machines Disabled . | . . . Actions | -11 -10 -10 --------- Run | Yrd Mat Sub Total 1463 | 1 446 1016 Wait 104 | . 14 90 Move 1217 | 1 367 849 Hop . | . . . Pick Up 25 | . 10 15 Fast Attach 13 | . 8 5 Attach 3 | . 1 2 Detach . | . . . Swap 11 | . 4 7 Drop 11 | . 3 8 Fire 77 | . 39 38 Melee . | . . . Ram . | . . . Kick . | . . . Crush . | . . . Escape Stasis . | . . . Rewire . | . . . Trap 1 | . . 1 Miscellaneous 1 | . . 1 Route ------- -11/Scrapyard -10/Materials (discovered 5 exits: *Mat x3 / *Min / *Sub) -10/Subcaves (discovered 1 exit: Mat) History --------- Turn | Location | Event 1 | -11/Scrapyard | Discovered new exit (range 1) 3 | -11/Scrapyard | Entered Materials 304 | -10/Materials | Build established: Mutant 430 | -10/Materials | Discovered new exit (range 8) 431 | -10/Materials | Learned 4 Subcaves zone layouts 477 | -10/Materials | Identified exit to Mines 477 | -10/Materials | Identified exit to Materials 515 | -10/Materials | Learned Storage non-interactive machine intel 544 | -10/Materials | Learned Storage security intel 562 | -10/Materials | Identified exit to Subcaves 586 | -10/Materials | Learned Storage trap positions 816 | -10/Materials | Entered Subcaves 817 | -10/Subcaves | Identified exit to Materials 861 | -10/Subcaves | Core integrity fell below 50% 928 | -10/Subcaves | Lost 3 parts (2n1w) 1114 | -10/Subcaves | A swath of the cavern ceiling suddenly collapsed 1133 | -10/Subcaves | Disturbed a concealed Subdweller 1659 | -10/Subcaves | Visited 4L-MR0's lab 1679 | -10/Subcaves | Found Rainbow Chip 1817 | -10/Subcaves | Shifting Twisted Machinery released Battle Cannon 1824 | -10/Subcaves | Shifting Twisted Machinery released Sub. Shrapnel Launcher 1887 | -10/Subcaves | Core integrity fell below 20% 1896 | -10/Subcaves | Destroyed by G-34 Mercenary with Small Laser Last Messages --------------- 01716_ Acquired Ion Engine. 01718_ Subatomizers dissect the Disposable Heat Sink. 01718_ Acquired Lgt. Armor Plating. 01730_ Subatomizers dissect the Disposable Heat Sink, destroying it. 01796_ Acquired Lgt. Treads. Battle Cannon falls loose from the Twisted Machinery. Sub. Shrapnel Launcher falls loose from the Twisted Machinery. 01827_ Acquired Battle Cannon. 01844_ Acquired Sub. Shrapnel Launcher. 01852_ Acquired derelict log, extracted data. Data stored: Mines entrances (x2). 01856_ Acquired 23 matter. 01859_ Acquired Lgt. Ion Engine. 01887_ G-47 Trooper knocked back. 01890_ Critical hit (Burn: +37). 01891_ G-47 Trooper knocked back. Map ----- +----------------------------------------------------+ | ?### " ### #?????##### ## #??????????? | | ## ! #?????# #???????????? | | # ##""! #??#### ##??????????? | | ## #" ! ##### #??????????? | | ?## "# # #??????????? | | ??## ""# # #???????????? | | ####### ""## # ## #???????????? | | ### "" ### ##### ## #??????????? | | """" ##?###???## #?#### #??????????? | | ### " #?????????# #?????? ##??????????? | | #?## #????????## #???????? #???????????? | | #??### #??????### #????????? #???????????? | | ####?# ##?????## #???????????#???????????? | | ### # ##????## ##???????????????????????? | | ### #????# ###????????????????????????? | | #?## #?# #"" #???????###????????????????? | | #### #?## "" ##?????## #????????????????? | | # # #?#" """ ##???## #????????????????? | | #?#" ##"# #???# ##???????????????? | | ### ""##### ##???# ##??????????????? | | " # # ##"" ???## ##?## #??????????????? | | " " #### ""#?#?# " ### ##?????????????? | | " #?# """"##"# "" g #?????????????? | | # ## ##"""" """ " g ##?????????????? | | ## ""#?? """ "" ####???????????? | | ?## "###??? """### @### ## #???????????? | | ??# ###????? ""#?#####?# ## #???????????? | | ?## #####??# "????????# ### #???????????? | | ## ## ##?? #?????????## ### #???????????? | | # ### #????????### # < ##???????????? | | #????????# ## # #????????????? | | ### ##????????# #????????????? | | ##?### ###????#### ####????????????? | | #???## #???? ## # ##???????????????? | | ??# #????????????????? | | ### ##### # ###????????????????? | | # ## ###?# ##?????? ####??????????????????? | | ########???####????????#####?????????????????????? | | ?????????????????????????????????????????????????? | | ?????????????????????????????????????????????????? | | ?????????????????????????????????????????????????? | | ?????????????????????????????????????????????????? | | ?????????????????????????????????????????????????? | | ?????????????????????????????????????????????????? | | ?????????????????????????????????????????????????? | | ?????????????????????????????????????????????????? | | ?????????????????????????????????????????????????? | | ?????????????????????????????????????????????????? | | ?????????????????????????????????????????????????? | | ?????????????????????????????????????????????????? | +----------------------------------------------------+ Best States ------------- Heat Dissipation 25 Energy Generation 10 Energy Capacity 250 Matter Stores 314 Matter Capacity 450 Sight Range 16 Terrain Scan Density 10 Armor Coverage 800 Evasion (%) 55 Item Schematics ----------------- None Robot Schematics ------------------ None Fabricated ------------ Nothing Alien Tech Used ----------------- None Achievements -------------- None Challenges ------------ None Game ------ Seed TechFireCyclogen Manual? 0 Play Time 00:17:57 Cumulative 133.1 hours Start 2024.09.23 @ 03:28:18 End 2024.09.23 @ 03:43:40 Sessions 1 Manual Loads 0 Difficulty Rogue Special Mode None Game No. 133 Rogue 131 Adventurer 2 Explorer 0 Win Type - Total 0 Types 0/0/0/0/0/0/0/0/0 Lore% 59 Gallery% 59 Achievement% 44 Wizard Run 0 Options --------- Layout 2 ASCII 0 Keyboard 1 Movement Vi Keybinds 0 Fullscreen 1 Font 24/Smallcaps Map View 50x44 Zoom Use 0% Tactical HUD 1 Map Filters NONE Filters NONE Steam SD RUN: a5014ca7-9c1c-4f54-88b1-1595c9defa3e